fUST/lending_fUST_20260107
["ID","MTS","AMOUNT","RATE_DAILY","PERIOD"]
[400685305,1767779442183,-500.0,0.00027397,2]
[400685307,1767779442193,-500.0,0.00027397,2]
[400685309,1767779442203,-231.38579924,0.00027397,2]
[400685311,1767779442213,-397.00088279,0.00027397,2]
[400685313,1767779442223,-500.0,0.00027397,2]
[400685315,1767779442233,-500.0,0.00027397,2]
[400685318,1767779442243,-500.0,0.00027397,2]
[400685320,1767779442253,-500.0,0.00027397,2]
[400685322,1767779442264,-500.0,0.00027397,2]
[400685324,1767779442273,-500.0,0.00027397,2]
[400685326,1767779442283,-500.0,0.00027397,2]
[400685328,1767779442292,-500.0,0.00027397,2]
[400685330,1767779442301,-500.0,0.00027397,2]
[400685332,1767779442311,-500.0,0.00027397,2]
[400685334,1767779442320,-429.3256291,0.00027397,2]
[400685336,1767779442330,-500.0,0.00027397,2]
[400685338,1767779442340,-500.0,0.00027397,2]
[400685339,1767779442350,-457.91232299,0.00027397,2]
[400685341,1767779442360,-509.97091486,0.00027397,2]
[400685344,1767779442371,-500.0,0.00027397,2]
[400685345,1767779442382,-500.0,0.00027397,2]
[400685347,1767779442392,-500.0,0.00027397,2]
[400685350,1767779442403,-500.0,0.00027397,2]
[400685351,1767779442412,-500.0,0.00027397,2]
[400685353,1767779442422,-393.32959088,0.00027397,2]
[400685355,1767779442431,-500.0,0.00027397,2]
[400685357,1767779442441,-500.0,0.00027397,2]
[400685359,1767779442451,-509.25652376,0.00027397,2]
[400685361,1767779442461,-500.0,0.00027397,2]
[400685363,1767779442470,-517.01871719,0.00027397,2]
[400685365,1767779442480,-1000.0,0.00027397,2]
[400685367,1767779442489,-500.0,0.00027397,2]
[400685369,1767779442499,-500.0,0.00027397,2]
[400685371,1767779442508,-221.6668596,0.00027397,2]
[400685373,1767779442517,-421.02480079,0.00027397,2]
[400685375,1767779442527,-500.0,0.00027397,2]
[400685377,1767779442537,-500.0,0.00027397,2]
[400685379,1767779442547,-500.0,0.00027397,2]
[400685381,1767779442556,-500.0,0.00027397,2]
[400685383,1767779442566,-500.0,0.00027397,2]
[400685385,1767779442575,-500.0,0.00027397,2]
[400685387,1767779442584,-500.0,0.00027397,2]
[400685389,1767779442593,-500.0,0.00027397,2]
[400685391,1767779442602,-500.0,0.00027397,2]
[400685393,1767779442611,-500.0,0.00027397,2]
[400685395,1767779442621,-566.66989012,0.00027397,2]
[400685397,1767779442631,-500.0,0.00027397,2]
[400685399,1767779442641,-500.0,0.00027397,2]
[400685401,1767779442651,-500.0,0.00027397,2]
[400685403,1767779442661,-500.0,0.00027397,2]
[400685406,1767779442670,-500.0,0.00027397,2]
[400685408,1767779442680,-500.0,0.00027397,2]
[400685410,1767779442689,-500.0,0.00027397,2]
[400685414,1767779442699,-565.76829321,0.00027397,2]
[400685417,1767779442710,-500.0,0.00027397,2]
[400685419,1767779442721,-500.0,0.00027397,2]
[400685421,1767779442731,-500.0,0.00027397,2]
[400685423,1767779442741,-500.0,0.00027397,2]
[400685425,1767779442750,-257.75144665,0.00027397,2]
[400685427,1767779442760,-191.0,0.00027397,2]
[400685429,1767779442770,-500.0,0.00027397,2]
[400685432,1767779442780,-500.0,0.00027397,2]
[400685435,1767779442789,-397.14508349,0.00027397,2]
[400685437,1767779442799,-330.48636808,0.00027397,2]
[400685439,1767779442808,-500.0,0.00027397,2]
[400685442,1767779442817,-500.0,0.00027397,2]
[400685444,1767779442827,-513.83486769,0.00027397,2]
[400685446,1767779442836,-500.0,0.00027397,2]
[400685449,1767779442845,-285.61445838,0.00027397,2]
[400685453,1767779442854,-218.86382134,0.00027397,2]
[400685456,1767779442863,-459.71283558,0.00027397,2]
[400685458,1767779442872,-500.0,0.00027397,2]
[400685461,1767779442882,-563.61353423,0.00027397,2]
[400685463,1767779442892,-500.0,0.00027397,2]
[400685465,1767779442901,-296.57482557,0.00027397,2]
[400685467,1767779442910,-500.0,0.00027397,2]
[400685469,1767779442920,-369.84563094,0.00027397,2]
[400685471,1767779442929,-500.0,0.00027397,2]
[400685473,1767779442939,-500.0,0.00027397,2]
[400685475,1767779442951,-266.46290101,0.00027397,2]
[400685477,1767779442962,-500.0,0.00027397,2]
[400685483,1767779443012,-318.72988081,0.00027397,2]
[400685485,1767779443024,-500.0,0.00027397,2]
[400685488,1767779443039,-576.3,0.00027397,2]
[400685490,1767779443057,-500.0,0.00027397,2]
[400685492,1767779443067,-500.0,0.00027397,2]
[400685494,1767779443077,-164.8466183,0.00027397,2]
[400685496,1767779443086,-248.88132045,0.00027397,2]
[400685498,1767779443095,-500.0,0.00027397,2]
[400685499,1767779443105,-509.29429867,0.00027397,2]
[400685501,1767779443115,-500.0,0.00027397,2]
[400685504,1767779443125,-500.0,0.00027397,2]
[400685506,1767779443135,-480.41975781,0.00027397,2]
[400685508,1767779443145,-258.82529302,0.00027397,2]
[400685510,1767779443155,-461.56079082,0.00027397,2]
[400685511,1767779443164,-500.0,0.00027397,2]
[400685513,1767779443175,-500.0,0.00027397,2]
[400685516,1767779443184,-500.0,0.00027397,2]
[400685518,1767779443193,-500.0,0.00027397,2]
[400685519,1767779443203,-287.99941463,0.00027397,2]
[400685522,1767779443213,-500.0,0.00027397,2]
[400685524,1767779443223,-271.44586454,0.00027397,2]
[400685525,1767779443232,-300.51321961,0.00027397,2]
[400685527,1767779443242,-195.03199849,0.00027397,2]
[400685529,1767779443252,-500.0,0.00027397,2]
[400685531,1767779443262,-500.0,0.00027397,2]
[400685533,1767779443271,-500.0,0.00027397,2]
[400685535,1767779443281,-500.0,0.00027397,2]
[400685537,1767779443290,-500.0,0.00027397,2]
[400685539,1767779443300,-500.0,0.00027397,2]
[400685541,1767779443310,-500.0,0.00027397,2]
[400685543,1767779443320,-200.0,0.00027397,2]
[400685545,1767779443329,-202.31547305,0.00027397,2]
[400685547,1767779443337,-500.0,0.00027397,2]
[400685549,1767779443346,-185.72944567,0.00027397,2]
[400685551,1767779443357,-500.0,0.00027397,2]
[400685553,1767779443366,-471.39829619,0.00027397,2]
[400685555,1767779443375,-500.0,0.00027397,2]
[400685557,1767779443385,-500.0,0.00027397,2]
[400685559,1767779443394,-452.50526344,0.00027397,2]
[400685561,1767779443404,-477.66225869,0.00027397,2]
[400685563,1767779443414,-500.0,0.00027397,2]
[400685565,1767779443423,-593.0958547,0.00027397,2]
[400685567,1767779443434,-500.0,0.00027397,2]
[400685569,1767779443444,-500.0,0.00027397,2]
[400685571,1767779443453,-500.0,0.00027397,2]
[400685573,1767779443463,-500.0,0.00027397,2]
[400685575,1767779443472,-500.0,0.00027397,2]
[400685577,1767779443482,-399.37825281,0.00027397,2]
[400685579,1767779443491,-248.43549286,0.00027397,2]
[400685581,1767779443501,-484.89464713,0.00027397,2]
[400685583,1767779443510,-454.06231089,0.00027397,2]
[400685585,1767779443519,-430.45190106,0.00027397,2]
[400685587,1767779443528,-500.0,0.00027397,2]
[400685589,1767779443538,-500.0,0.00027397,2]
[400685591,1767779443547,-513.07286312,0.00027397,2]
[400685593,1767779443556,-500.0,0.00027397,2]
[400685596,1767779443565,-500.0,0.00027397,2]
[400685599,1767779443575,-500.0,0.00027397,2]
[400685603,1767779443584,-500.0,0.00027397,2]
[400685606,1767779443594,-500.0,0.00027397,2]
[400685609,1767779443603,-500.0,0.00027397,2]
[400685612,1767779443612,-269.29132722,0.00027397,2]
[400685615,1767779443622,-500.0,0.00027397,2]
[400685619,1767779443632,-500.0,0.00027397,2]
[400685622,1767779443642,-500.0,0.00027397,2]
[400685625,1767779443651,-500.0,0.00027397,2]
[400685628,1767779443661,-453.49823966,0.00027397,2]
[400685631,1767779443670,-500.0,0.00027397,2]
[400685634,1767779443679,-467.04427797,0.00027397,2]
[400685637,1767779443688,-500.0,0.00027397,2]
[400685640,1767779443697,-500.68429147,0.00027397,2]
[400685643,1767779443706,-756.53,0.00027397,2]
[400685646,1767779443715,-500.0,0.00027397,2]
[400685649,1767779443723,-500.0,0.00027397,2]
[400685651,1767779443732,-500.0,0.00027397,2]
[400685654,1767779443742,-500.0,0.00027397,2]
[400685657,1767779443752,-500.0,0.00027397,2]
[400685660,1767779443763,-208.00138522,0.00027397,2]
[400685663,1767779443772,-500.0,0.00027397,2]
[400685666,1767779443781,-536.67131664,0.00027397,2]
[400685669,1767779443790,-500.0,0.00027397,2]
[400685671,1767779443801,-3498.10796226,0.00027397,2]
[400685676,1767779443811,-500.0,0.00027397,2]
[400685677,1767779443820,-287.87151555,0.00027397,2]
[400685679,1767779443830,-575.86198463,0.00027397,2]
[400685681,1767779443839,-500.0,0.00027397,2]
[400685684,1767779443849,-500.0,0.00027397,2]
[400685686,1767779443858,-500.0,0.00027397,2]
[400685688,1767779443869,-500.0,0.00027397,2]
[400685691,1767779443878,-500.0,0.00027397,2]
[400685692,1767779443888,-500.0,0.00027397,2]
[400685694,1767779443898,-500.0,0.00027397,2]
[400685696,1767779443907,-500.0,0.00027397,2]
[400685699,1767779443916,-500.0,0.00027397,2]
[400685701,1767779443926,-558.55,0.00027397,2]
[400685703,1767779443935,-505.81393525,0.00027397,2]
[400685705,1767779443944,-315.73155468,0.00027397,2]
[400685707,1767779443957,-500.0,0.00027397,2]
[400685709,1767779443966,-500.0,0.00027397,2]
[400685711,1767779443975,-500.0,0.00027397,2]
[400685712,1767779443984,-3797.4,0.00027397,2]
[400685714,1767779443994,-500.0,0.00027397,2]
[400685716,1767779444003,-299.91358732,0.00027397,2]
[400685718,1767779444012,-500.0,0.00027397,2]
[400685720,1767779444021,-500.0,0.00027397,2]
[400685722,1767779444032,-423.19708612,0.00027397,2]
[400685724,1767779444041,-312.21609013,0.00027397,2]
[400685726,1767779444050,-523.60697497,0.00027397,2]
[400685729,1767779444060,-371.09090696,0.00027397,2]
[400685731,1767779444071,-500.0,0.00027397,2]
[400685733,1767779444080,-554.99626701,0.00027397,2]
[400685735,1767779444089,-500.0,0.00027397,2]
[400685737,1767779444099,-494.14749146,0.00027397,2]
[400685739,1767779444108,-500.0,0.00027397,2]
[400685741,1767779444118,-523.62028016,0.00027397,2]
[400685743,1767779444127,-500.0,0.00027397,2]
[400685745,1767779444137,-474.29098556,0.00027397,2]
[400685747,1767779444146,-500.0,0.00027397,2]
[400685749,1767779444155,-500.0,0.00027397,2]
[400685751,1767779444164,-500.0,0.00027397,2]
[400685753,1767779444173,-500.0,0.00027397,2]
[400685755,1767779444183,-836.74,0.00027397,2]
[400685757,1767779444193,-500.0,0.00027397,2]
[400685758,1767779444202,-500.0,0.00027397,2]
[400685761,1767779444211,-171.93674001,0.00027397,2]
[400685763,1767779444221,-491.15587714,0.00027397,2]
[400685765,1767779444230,-500.0,0.00027397,2]
[400685767,1767779444240,-161.89891017,0.00027397,2]
[400685769,1767779444250,-440.46983605,0.00027397,2]
[400685771,1767779444261,-278.39946279,0.00027397,2]
[400685773,1767779444271,-500.0,0.00027397,2]
[400685775,1767779444281,-500.0,0.00027397,2]
[400685777,1767779444290,-500.0,0.00027397,2]
[400685779,1767779444300,-500.0,0.00027397,2]
[400685781,1767779444310,-500.0,0.00027397,2]
[400685783,1767779444319,-500.0,0.00027397,2]
[400685785,1767779444328,-375.52520677,0.00027397,2]
[400685787,1767779444338,-500.0,0.00027397,2]
[400685789,1767779444348,-500.0,0.00027397,2]
[400685791,1767779444357,-500.0,0.00027397,2]
[400685793,1767779444366,-500.0,0.00027397,2]
[400685795,1767779444376,-500.0,0.00027397,2]
[400685797,1767779444387,-500.0,0.00027397,2]
[400685799,1767779444396,-531.43503261,0.00027397,2]
[400685801,1767779444406,-299.23162821,0.00027397,2]
[400685803,1767779444416,-552.48388047,0.00027397,2]
[400685805,1767779444426,-460.4,0.00027397,2]
[400685807,1767779444436,-500.0,0.00027397,2]
[400685809,1767779444445,-502.52642032,0.00027397,2]
[400685811,1767779444454,-500.0,0.00027397,2]
[400685813,1767779444463,-500.0,0.00027397,2]
[400685815,1767779444472,-500.0,0.00027397,2]
[400685817,1767779444481,-422.20830435,0.00027397,2]
[400685819,1767779444491,-500.0,0.00027397,2]
[400685821,1767779444500,-500.0,0.00027397,2]
[400685822,1767779444510,-500.0,0.00027397,2]
[400685824,1767779444520,-343.357016,0.00027397,2]
[400685826,1767779444530,-678.0,0.00027397,2]
[400685828,1767779444540,-502.76917188,0.00027397,2]
[400685830,1767779444550,-427.62515134,0.00027397,2]
[400685832,1767779444559,-500.0,0.00027397,2]
[400685834,1767779444569,-500.0,0.00027397,2]
[400685837,1767779444579,-500.0,0.00027397,2]
[400685839,1767779444588,-500.0,0.00027397,2]
[400685841,1767779444597,-221.99154029,0.00027397,2]
[400685843,1767779444606,-333.045617,0.00027397,2]
[400685845,1767779444615,-500.0,0.00027397,2]
[400685847,1767779444626,-500.0,0.00027397,2]
[400685849,1767779444637,-500.0,0.00027397,2]
[400685851,1767779444646,-500.0,0.00027397,2]
[400685853,1767779444656,-500.0,0.00027397,2]
[400685855,1767779444664,-500.0,0.00027397,2]
[400685857,1767779444674,-500.0,0.00027397,2]
[400685859,1767779444683,-500.0,0.00027397,2]
[400685861,1767779444692,-500.0,0.00027397,2]
[400685863,1767779444702,-500.0,0.00027397,2]
[400685865,1767779444711,-500.0,0.00027397,2]
[400685867,1767779444720,-500.0,0.00027397,2]
[400685869,1767779444729,-215.14710276,0.00027397,2]
[400685871,1767779444739,-500.0,0.00027397,2]
[400685873,1767779444747,-500.0,0.00027397,2]
[400685875,1767779444757,-308.74291557,0.00027397,2]
[400685877,1767779444765,-322.62449599,0.00027397,2]
[400685879,1767779444774,-500.0,0.00027397,2]
[400685881,1767779444783,-500.0,0.00027397,2]
[400685883,1767779444793,-500.0,0.00027397,2]
[400685885,1767779444802,-500.0,0.00027397,2]
[400685887,1767779444811,-956.27,0.00027397,2]
[400685889,1767779444820,-479.11138283,0.00027397,2]
[400685891,1767779444829,-2251.87,0.00027397,2]
[400685893,1767779444838,-500.0,0.00027397,2]
[400685895,1767779444847,-500.0,0.00027397,2]
[400685897,1767779444857,-500.0,0.00027397,2]
[400685899,1767779444867,-500.0,0.00027397,2]
[400685901,1767779444876,-500.0,0.00027397,2]
[400685903,1767779444886,-500.0,0.00027397,2]
[400685905,1767779444895,-211.52499438,0.00027397,2]
[400685907,1767779444904,-215.58317128,0.00027397,2]
[400685909,1767779444914,-500.0,0.00027397,2]
[400685911,1767779444922,-500.0,0.00027397,2]
[400685913,1767779444931,-500.0,0.00027397,2]
[400685915,1767779444940,-500.0,0.00027397,2]
[400685917,1767779444949,-500.0,0.00027397,2]
[400685919,1767779444958,-500.0,0.00027397,2]
[400685921,1767779444970,-353.76874161,0.00027397,2]
[400685923,1767779444980,-535.75,0.00027397,2]
[400685925,1767779444989,-500.0,0.00027397,2]
[400685927,1767779444998,-184.20155596,0.00027397,2]
[400685929,1767779445009,-500.0,0.00027397,2]
[400685931,1767779445018,-14665.45,0.00027397,2]
[400685933,1767779445027,-500.0,0.00027397,2]
[400685935,1767779445039,-500.0,0.00027397,2]
[400685937,1767779445047,-500.0,0.00027397,2]
[400685939,1767779445056,-265.18668743,0.00027397,2]
[400685941,1767779445066,-500.0,0.00027397,2]
[400685943,1767779445074,-500.0,0.00027397,2]
[400685946,1767779445082,-500.0,0.00027397,2]
[400685948,1767779445092,-500.0,0.00027397,2]
[400685949,1767779445101,-500.0,0.00027397,2]
[400685951,1767779445110,-245.10460636,0.00027397,2]
[400685953,1767779445120,-500.0,0.00027397,2]
[400685955,1767779445129,-490.48927619,0.00027397,2]
[400685957,1767779445140,-500.0,0.00027397,2]
[400685960,1767779445152,-500.0,0.00027397,2]
[400685962,1767779445161,-500.0,0.00027397,2]
[400685964,1767779445170,-500.0,0.00027397,2]
[400685966,1767779445180,-578.09418574,0.00027397,2]
[400685968,1767779445189,-909.99,0.00027397,2]
[400685969,1767779445198,-500.0,0.00027397,2]
[400685972,1767779445207,-500.0,0.00027397,2]
[400685974,1767779445216,-500.0,0.00027397,2]
[400685975,1767779445225,-500.0,0.00027397,2]
[400685977,1767779445234,-500.0,0.00027397,2]
[400685979,1767779445243,-500.0,0.00027397,2]
[400685981,1767779445255,-500.0,0.00027397,2]
[400685984,1767779445264,-500.0,0.00027397,2]
[400685985,1767779445274,-500.0,0.00027397,2]
[400685987,1767779445283,-500.0,0.00027397,2]
[400685989,1767779445294,-500.0,0.00027397,2]
[400685991,1767779445303,-500.0,0.00027397,2]
[400685993,1767779445312,-500.0,0.00027397,2]
[400685995,1767779445321,-500.0,0.00027397,2]
[400685997,1767779445331,-200.11830071,0.00027397,2]
[400685999,1767779445339,-500.0,0.00027397,2]
[400686001,1767779445349,-500.0,0.00027397,2]
[400686003,1767779445359,-568.59240628,0.00027397,2]
[400686005,1767779445370,-927.69,0.00027397,2]
[400686007,1767779445380,-500.0,0.00027397,2]
[400686009,1767779445394,-4613.91,0.00027397,2]
[400686011,1767779445404,-500.0,0.00027397,2]
[400686013,1767779445416,-500.0,0.00027397,2]
[400686015,1767779445425,-295.16717866,0.00027397,2]
[400686018,1767779445435,-500.0,0.00027397,2]
[400686020,1767779445445,-500.0,0.00027397,2]
[400686022,1767779445455,-857.11,0.00027397,5]
[400686024,1767779445464,-857.11,0.00027397,5]
[400686026,1767779445473,-857.11,0.00027397,5]
[400686028,1767779445484,-500.0,0.00027397,2]
[400686030,1767779445494,-857.11,0.00027397,5]
[400686032,1767779445503,-857.11,0.00027397,5]
[400686034,1767779445512,-857.11,0.00027397,5]
[400686036,1767779445521,-345.86721317,0.00027397,2]
[400686038,1767779445529,-857.11,0.00027397,5]
[400686040,1767779445538,-857.11,0.00027397,5]
[400686042,1767779445547,-857.11,0.00027397,5]
[400686044,1767779445555,-857.11,0.00027397,5]
[400686046,1767779445565,-857.11,0.00027397,5]
[400686048,1767779445573,-857.11,0.00027397,5]
[400686050,1767779445582,-857.11,0.00027397,5]
[400686052,1767779445593,-857.11,0.00027397,5]
[400686054,1767779445602,-857.11,0.00027397,5]
[400686055,1767779445611,-857.11,0.00027397,5]
[400686058,1767779445620,-857.11,0.00027397,5]
[400686060,1767779445629,-857.11,0.00027397,5]
[400686062,1767779445640,-857.11,0.00027397,5]
[400686063,1767779445649,-857.11,0.00027397,5]
[400686066,1767779445659,-500.0,0.00027397,2]
[400686067,1767779445668,-857.11,0.00027397,5]
[400686069,1767779445677,-500.0,0.00027397,2]
[400686071,1767779445686,-857.11,0.00027397,5]
[400686073,1767779445695,-857.11,0.00027397,5]
[400686075,1767779445704,-857.13631772,0.00027397,5]
[400686077,1767779445713,-500.0,0.00027397,2]
[400686079,1767779445722,-500.0,0.00027397,2]
[400686081,1767779445731,-500.0,0.00027397,2]
[400686083,1767779445741,-274.65446249,0.00027397,2]
[400686085,1767779445750,-500.0,0.00027397,2]
[400686087,1767779445759,-500.0,0.00027397,2]
[400686089,1767779445768,-500.0,0.00027397,2]
[400686091,1767779445777,-500.0,0.00027397,2]
[400686093,1767779445786,-500.0,0.00027397,2]
[400686096,1767779445796,-500.0,0.00027397,2]
[400686098,1767779445805,-500.0,0.00027397,2]
[400686100,1767779445814,-538.42722459,0.00027397,2]
[400686102,1767779445823,-500.0,0.00027397,2]
[400686104,1767779445832,-590.74033955,0.00027397,2]
[400686106,1767779445842,-538.47909341,0.00027397,2]
[400686108,1767779445851,-500.0,0.00027397,2]
[400686110,1767779445860,-500.0,0.00027397,2]
[400686112,1767779445870,-2787.6,0.00027397,2]
[400686114,1767779445879,-500.0,0.00027397,2]
[400686116,1767779445888,-500.0,0.00027397,2]
[400686117,1767779445898,-717.62,0.00027397,2]
[400686120,1767779445911,-512.07253337,0.00027397,2]
[400686122,1767779445920,-500.0,0.00027397,2]
[400686124,1767779445929,-500.0,0.00027397,2]
[400686126,1767779445939,-661.34,0.00027397,2]
[400686128,1767779445950,-500.0,0.00027397,2]
[400686130,1767779445962,-500.0,0.00027397,2]
[400686132,1767779445971,-500.0,0.00027397,2]
[400686134,1767779445981,-500.0,0.00027397,2]
[400686135,1767779445991,-500.0,0.00027397,2]
[400686137,1767779446001,-510.98678254,0.00027397,2]
[400686139,1767779446011,-500.0,0.00027397,2]
[400686141,1767779446020,-500.0,0.00027397,2]
[400686143,1767779446032,-500.0,0.00027397,2]
[400686146,1767779446041,-364.09358379,0.00027397,2]
[400686149,1767779446051,-500.0,0.00027397,2]
[400686152,1767779446061,-236.04284079,0.00027397,2]
[400686155,1767779446070,-500.0,0.00027397,2]
[400686159,1767779446081,-500.0,0.00027397,2]
[400686162,1767779446090,-500.0,0.00027397,2]
[400686165,1767779446099,-500.0,0.00027397,2]
[400686168,1767779446109,-500.0,0.00027397,2]
[400686171,1767779446118,-506.75385299,0.00027397,2]
[400686174,1767779446128,-500.0,0.00027397,2]
[400686177,1767779446137,-500.0,0.00027397,2]
[400686180,1767779446147,-500.0,0.00027397,2]
[400686183,1767779446156,-500.0,0.00027397,2]
[400686186,1767779446165,-500.0,0.00027397,2]
[400686189,1767779446175,-500.0,0.00027397,2]
[400686192,1767779446184,-500.0,0.00027397,2]
[400686195,1767779446194,-500.0,0.00027397,2]
[400686198,1767779446204,-500.0,0.00027397,2]
[400686201,1767779446214,-505.05,0.00027397,2]
[400686204,1767779446223,-500.0,0.00027397,2]
[400686207,1767779446233,-500.0,0.00027397,2]
[400686210,1767779446242,-500.0,0.00027397,2]
[400686213,1767779446252,-500.0,0.00027397,2]
[400686216,1767779446262,-327.373558,0.00027397,2]
[400686219,1767779446272,-500.0,0.00027397,2]
[400686222,1767779446281,-500.0,0.00027397,2]
[400686224,1767779446291,-521.92991059,0.00027397,2]
[400686226,1767779446302,-500.0,0.00027397,2]
[400686229,1767779446312,-500.0,0.00027397,2]
[400686232,1767779446323,-500.0,0.00027397,2]
[400686235,1767779446333,-500.0,0.00027397,2]
[400686238,1767779446342,-500.0,0.00027397,2]
[400686241,1767779446352,-500.0,0.00027397,2]
[400686244,1767779446362,-1076.6,0.00027397,2]
[400686247,1767779446371,-547.01642659,0.00027397,2]
[400686250,1767779446380,-3024.23,0.00027397,2]
[400686253,1767779446394,-500.0,0.00027397,2]
[400686256,1767779446404,-500.0,0.00027397,2]
[400686260,1767779446414,-478.12849499,0.00027397,2]
[400686263,1767779446424,-500.0,0.00027397,2]
[400686266,1767779446434,-500.0,0.00027397,2]
[400686269,1767779446444,-500.0,0.00027397,2]
[400686272,1767779446453,-500.0,0.00027397,2]
[400686275,1767779446463,-500.0,0.00027397,2]
[400686278,1767779446472,-500.0,0.00027397,2]
[400686281,1767779446481,-500.0,0.00027397,2]
[400686284,1767779446491,-500.0,0.00027397,2]
[400686286,1767779446500,-500.0,0.00027397,2]
[400686289,1767779446511,-500.0,0.00027397,2]
[400686293,1767779446521,-853.68,0.00027397,2]
[400686296,1767779446531,-500.0,0.00027397,2]
[400686299,1767779446541,-500.0,0.00027397,2]
[400686302,1767779446550,-304.60912659,0.00027397,2]
[400686306,1767779446560,-500.0,0.00027397,2]
[400686309,1767779446570,-500.0,0.00027397,2]
[400686312,1767779446579,-465.25478122,0.00027397,2]
[400686315,1767779446588,-500.0,0.00027397,2]
[400686318,1767779446597,-500.0,0.00027397,2]
[400686321,1767779446607,-487.86073268,0.00027397,2]
[400686324,1767779446618,-540.06697722,0.00027397,2]
[400686327,1767779446629,-419.71377291,0.00027397,2]
[400686330,1767779446641,-236.50086847,0.00027397,2]
[400686333,1767779446651,-500.0,0.00027397,2]
[400686336,1767779446660,-284.91988895,0.00027397,2]
[400686338,1767779446672,-500.0,0.00027397,2]
[400686341,1767779446682,-500.0,0.00027397,2]
[400686344,1767779446693,-500.0,0.00027397,2]
[400686347,1767779446709,-301.74446524,0.00027397,2]
[400686350,1767779446720,-500.0,0.00027397,2]
[400686353,1767779446729,-500.0,0.00027397,2]
[400686356,1767779446739,-500.0,0.00027397,2]
[400686359,1767779446749,-500.0,0.00027397,2]
[400686361,1767779446759,-500.0,0.00027397,2]
[400686364,1767779446769,-500.0,0.00027397,2]
[400686367,1767779446779,-500.0,0.00027397,2]
[400686370,1767779446788,-500.0,0.00027397,2]
[400686372,1767779446798,-500.0,0.00027397,2]
[400686374,1767779446807,-500.0,0.00027397,2]
[400686378,1767779446818,-500.0,0.00027397,2]
[400686380,1767779446828,-500.0,0.00027397,2]
[400686383,1767779446837,-500.0,0.00027397,2]
[400686386,1767779446847,-500.0,0.00027397,2]
[400686390,1767779446857,-493.95274048,0.00027397,2]
[400686393,1767779446867,-500.0,0.00027397,2]
[400686396,1767779446877,-500.0,0.00027397,2]
[400686398,1767779446887,-2410.47,0.00027397,2]
[400686401,1767779446897,-500.0,0.00027397,2]
[400686403,1767779446906,-504.14689892,0.00027397,2]
[400686406,1767779446916,-500.0,0.00027397,2]
[400686409,1767779446926,-500.0,0.00027397,2]
[400686412,1767779446936,-500.0,0.00027397,2]
[400686415,1767779446945,-500.0,0.00027397,2]
[400686418,1767779446960,-500.0,0.00027397,2]
[400686421,1767779446970,-216.47005031,0.00027397,2]
[400686424,1767779446980,-500.0,0.00027397,2]
[400686427,1767779446990,-500.0,0.00027397,2]
[400686430,1767779447002,-500.0,0.00027397,2]
[400686433,1767779447011,-500.0,0.00027397,2]
[400686436,1767779447022,-500.0,0.00027397,2]
[400686439,1767779447031,-500.0,0.00027397,2]
[400686441,1767779447042,-500.0,0.00027397,2]
[400686444,1767779447052,-500.0,0.00027397,2]
[400686446,1767779447062,-500.0,0.00027397,2]